Cogmind - Beta 16 @@@ ROGUE MODE // 2025.10.30 @ 06:28:11 Player: Cereal Killer Result: Destroyed by Tracker with Linked Autogun Performance ------------- Evolutions (5) 2500 Regions Visited (16) 3200 Robots Destroyed (171) 855 Value Destroyed (10101) 10101 Prototype IDs (239) 4780 Alien Tech Used (0) 0 Bonus (8359) 8359 TOTAL SCORE: 29795 Bonus ------- High Alert Combat Kills 2673 Follower Combat Kills 1030 Entered Garrisons 600 Aligned with FarCom 300 Met Data Miner 300 Used Data Conduit 3000 Acquired ECA 300 Pursued by Intercept 500 Friendly Fire -344 Cogmind --------- Core Integrity 0/1000 Matter 300/300 Energy 265/265 System Corruption 17% Temperature Cool (0) Movement Core (200) Ox3 Location -5/Factory Parts ------- > --- POWER (2) -------- Improved Ion Engine > --- PROPULSION (2) --- Nuclear Pulse Array > --- UTILITY (9) ------ Improved Cryofiber Web Improved Terrain Scan Processor Advanced Target Analyzer Advanced Transmission Jammer Phase Shifter > --- WEAPON (4) ------- Kinetic Spear > --- INVENTORY (5) ---- Linear Gravjet Advanced Heat Sink Improved Heavy Laser Hardcell Cannon Improved Remote Datajack Peak State ------------ > --- POWER ------------ Hybrid Antimatter Reactor Particle Reactor > --- PROPULSION ------- Armored Huge Wheel > --- UTILITY ---------- Cryofiber Web Advanced Heat Sink Advanced Heat Sink Huge Storage Unit Improved Targeting Computer Advanced Target Analyzer Layered Heavy Armor Plating Advanced Force Field > --- WEAPON ----------- Nova Cannon Nova Cannon Nova Cannon Fusion Bomb Launcher > --- INVENTORY -------- Particle Reactor Compact Wheel Compact Wheel Cryofiber Web Advanced Cooling System Structural Scanner Improved Signal Interpreter Encrypted Comm Array Advanced Target Analyzer Improved Armor Integrity Analyzer Advanced Particle Charger Advanced Transmission Jammer Layered Heavy Armor Plating Improved Shield Generator Advanced Force Field Advanced Point Defense System Advanced Hacking Suite Hardcell Cannon Linear Accelerator Linear Accelerator Enhanced Force Lance DRS Beacon Deploy-a-Sentry Deploy-a-Sentry [Rating: 112] Favorites ----------- Power Particle Reactor Engine Light Ion Engine Power Core Micro Nuclear Core Reactor Particle Reactor Propulsion Compact Wheel Wheel Compact Wheel Hover Unit Linear Gravjet Flight Unit Nuclear Pulse Array Utility Cryofiber Web Device Cryofiber Web Storage Huge Storage Unit Processor Improved Targeting Computer Hackware Hacking Suite Protection Layered Light Armor Plating Weapon Nova Cannon Energy Gun High-powered Field Laser Energy Cannon Nova Cannon Ballistic Gun Heavy Assault Rifle Ballistic Cannon Hypervelocity Gauss Cannon Launcher Fusion Bomb Launcher Slashing Weapon Greatsword Piercing Weapon Heavy Pick Build | -11 -10 -10 -10 -9 -8 -8 -7 -7 -7 -7 -6 -6 -6 -6 -6 -5 ------- Run | Yrd Mat Min Exi Min Mat Gar Fac Low Low Dat Pro Fac Gar Fac Gar Fac Slots Evolved 10 | . . . . . 4 . 2 . . . . 2 . . . 2 Power 1 | . . . . . . . . . . . . 1 . . . . Propulsion . | . . . . . . . . . . . . . . . . . Utility 7 | . . . . . 4 . 1 . . . . 1 . . . 1 Weapon 2 | . . . . . . . 1 . . . . . . . . 1 Parts Attached 105 | 3 8 . . . 9 12 18 3 1 5 1 5 7 4 12 17 Power 16 | . 1 . . . 2 2 3 1 . . . 1 2 . 3 1 Engine 8 | . 1 . . . 2 1 3 . . . . . . . . 1 Core 3 | . . . . . . 1 . 1 . . . 1 . . . . Reactor 5 | . . . . . . . . . . . . . 2 . 3 . Propulsion 15 | 2 . . . . 1 3 1 1 . . . . . 3 1 3 Treads . | . . . . . . . . . . . . . . . . . Leg . | . . . . . . . . . . . . . . . . . Wheel 12 | 2 . . . . 1 3 1 1 . . . . . 3 1 . Hover 2 | . . . . . . . . . . . . . . . . 2 Flight 1 | . . . . . . . . . . . . . . . . 1 Utility 42 | 1 2 . . . 5 4 7 1 . 4 . 3 3 1 3 8 Device 20 | . . . . . 4 2 2 . . 1 . 3 1 1 3 3 Storage 3 | 1 1 . . . . . 1 . . . . . . . . . Processor 9 | . 1 . . . . . 2 . . 2 . . 1 . . 3 Hackware 1 | . . . . . 1 . . . . . . . . . . . Protection 9 | . . . . . . 2 2 1 . 1 . . 1 . . 2 Artifact . | . . . . . . . . . . . . . . . . . Weapon 32 | . 5 . . . 1 3 7 . 1 1 1 1 2 . 5 5 Energy Gun 5 | . 1 . . . . . 2 . 1 . . 1 . . . . Energy Cannon 6 | . . . . . . . 1 . . . 1 . 2 . 2 . Ballistic Gun 7 | . 3 . . . . 1 2 . . . . . . . . 1 Ballistic Cannon 6 | . . . . . 1 1 1 . . . . . . . . 3 Launcher 3 | . 1 . . . . 1 . . . . . . . . 1 . Special Weapon . | . . . . . . . . . . . . . . . . . Impact Weapon . | . . . . . . . . . . . . . . . . . Slashing Weapon 2 | . . . . . . . 1 . . 1 . . . . . . Piercing Weapon 3 | . . . . . . . . . . . . . . . 2 1 Special Melee Weapon . | . . . . . . . . . . . . . . . . . Unidentified Prototypes 1 | . . . . . . . 1 . . . . . . . . . Parts Lost 36 | . . . . . 2 9 5 2 . . . . . 1 . 17 Power 7 | . . . . . 1 2 2 1 . . . . . . . 1 Propulsion 5 | . . . . . . 2 . 1 . . . . . 1 . 1 Utility 14 | . . . . . 1 3 2 . . . . . . . . 8 Weapon 10 | . . . . . . 2 1 . . . . . . . . 7 Highest Loss Streak 16 | . . . . . 1 2 2 1 . . . . . 1 . 16 To Critical Strikes . | . . . . . . . . . . . . . . . . . Average Backups 17 | 2 12 14 13 12 11 11 13 19 19 12 21 19 21 21 20 17 Power 1 | 1 1 1 1 1 1 1 1 1 1 1 2 1 1 2 1 . Propulsion 1 | . 4 5 4 3 2 1 2 . . . 1 2 1 1 2 1 Utility 8 | . 1 2 3 3 2 3 7 11 12 4 10 9 10 12 11 9 Weapon 4 | 1 5 5 5 5 5 4 2 4 5 5 6 6 5 4 4 3 Tool/Special . | . . . . . . . . . . . . . . . . . Unused Backups 41 | . . 3 2 . 1 . 3 . . . 2 2 7 3 5 13 Power 3 | . . . . . 1 . . . . . . . . . 2 . Propulsion 7 | . . . 2 . . . 2 . . . . . 1 1 . 1 Utility 18 | . . . . . . . 1 . . . 2 . 3 1 2 9 Weapon 12 | . . 3 . . . . . . . . . 2 3 1 1 2 Tool/Special 1 | . . . . . . . . . . . . . . . . 1 Average Slot Usage (%) 91 | . 89 100 100 100 87 91 88 96 100 90 96 99 97 92 88 75 Engine 3 | . 12 14 14 14 9 7 4 4 . . . . . . . . Core 2 | . . . . . . 1 2 2 7 7 7 13 3 . . . Reactor 4 | . . . . . . . . . . . . . 9 13 13 8 Wheel 12 | . 28 28 28 28 18 13 7 11 15 15 11 13 13 12 8 3 Device 17 | . . . . . 22 21 24 15 15 14 15 20 20 20 20 19 Storage 7 | . 14 14 14 14 9 9 7 7 7 5 7 6 6 6 6 3 Processor 12 | . 10 14 14 14 9 9 12 15 15 15 15 13 13 13 13 12 Protection 7 | . . . . . . 6 7 15 15 16 15 12 10 6 6 3 Energy Gun 3 | . . . . . . . 4 . 6 3 7 8 8 6 1 . Energy Cannon 6 | . . . . . . . 5 7 . . . 6 10 13 15 12 Ballistic Gun 8 | . 21 28 28 28 17 15 6 15 15 8 14 3 . . . . Peak Build Rating 112 | 3 11 12 13 13 25 37 53 51 47 49 49 61 90 89 99 112 Average Rating 57 | 2 9 11 11 13 20 26 46 46 46 40 48 55 78 87 94 90 On Entrance 40 | . 3 11 11 13 13 24 37 50 45 47 49 49 61 89 87 99 Avg Prop Armor Cover (%) . | . . . . . . . . . . . . . . . . . Naked Turns 21 | . . . . . . . . . . . . . . . . 21 Heaviest Build 196 | 5 29 29 29 29 36 38 110 109 109 106 111 120 171 171 183 196 Greatest Support 32 | 26 26 26 26 26 26 32 28 28 28 28 28 28 28 32 32 28 Greatest Overweight (x) 10 | . 1 1 1 1 1 2 3 3 3 3 8 4 6 10 6 6 Average Overweight (x) 2 | . . 1 1 1 1 1 1 3 3 2 4 4 5 5 5 3 Largest Inventory Capacity 25 | 8 15 15 15 15 15 15 25 25 25 25 25 25 25 25 25 25 Average Capacity 21 | 7 14 15 15 15 15 15 18 25 25 20 25 25 25 25 25 20 Most Carried 25 | 7 14 15 15 15 15 15 25 25 25 25 25 25 25 25 25 25 Average Carried 20 | 3 12 14 14 15 14 14 17 23 24 14 24 23 24 24 24 20 Final Capacity 25 | 8 15 15 15 15 15 15 25 25 25 25 25 25 25 25 25 5 Final Carried 25 | 7 14 14 15 15 15 15 22 22 25 25 25 25 25 25 25 5 Class Distribution -------------------- 30% | Mutant 28% | Gunner 15% | Tank 10% | Commander-Gunner 5% | Derelict-Gunner 4% | Scavenger-Mutant Dominant Class ---------------- Mutant | -10/Materials Mutant | -10/Mines Mutant | -10/Exiles Mutant | -9/Mines Mutant | -8/Materials Mutant | -8/Garrison Tank | -7/Factory Tank | -7/Lower Caves Tank | -7/Lower Caves Mutant | -7/Data Miner Gunner | -6/Proximity Caves Derelict-Gunner | -6/Factory Commander-Gunner | -6/Garrison Gunner | -6/Factory Gunner | -6/Garrison Gunner | -5/Factory Resources | -11 -10 -10 -10 -9 -8 -8 -7 -7 -7 -7 -6 -6 -6 -6 -6 -5 ----------- Run | Yrd Mat Min Exi Min Mat Gar Fac Low Low Dat Pro Fac Gar Fac Gar Fac Matter Collected 3960 | 197 216 42 . . 322 609 541 378 58 184 148 . 207 50 329 679 Remotely . | . . . . . . . . . . . . . . . . . Salvage Created 7962 | . 304 44 . . 465 828 917 471 108 . 163 184 1030 481 1384 1583 Parts 340 | . 11 6 . . 33 30 43 12 4 . 9 9 43 25 50 65 Haulers Intercepted 9 | . 1 . . . 3 . 2 . . . . . . 1 1 1 Recyclers Shooed 3 | . 1 . . . . . . . . . . 1 . 1 . . Parts Field Recycled . | . . . . . . . . . . . . . . . . . Retrieved Matter . | . . . . . . . . . . . . . . . . . Parts Self-Destructed 24 | . . . . . . . . 12 3 . 9 . . . . . Prevented . | . . . . . . . . . . . . . . . . . Parts Restored . | . . . . . . . . . . . . . . . . . Kills | -11 -10 -10 -10 -9 -8 -8 -7 -7 -7 -7 -6 -6 -6 -6 -6 -5 ------- Run | Yrd Mat Min Exi Min Mat Gar Fac Low Low Dat Pro Fac Gar Fac Gar Fac Combat Hostiles Destroyed 139 | . 3 3 . . 4 20 17 8 1 . 6 3 16 5 23 30 Melee 1 | . . . . . . . . . . . . . . . 1 . Guns 37 | . 3 3 . . 4 12 5 2 1 . 6 1 . . . . Cannons 62 | . . . . . . . 10 5 . . . 1 13 3 13 17 AOE 26 | . . . . . . 8 . . . . . . . . 6 12 Classes Destroyed 18 | . 5 1 . . 1 1 4 . . . 2 . 2 . . 2 Worker 7 | . . . . . . . 1 . . . . . . 2 . 4 Builder 3 | . 1 . . . . . . . . . . . . . . 2 Hauler 9 | . 1 . . . 3 . 2 . . . . . . 1 1 1 Recycler 5 | . 1 . . . . . . . . . . . . 1 . 3 Mechanic 1 | . . . . . . . . . . . . . . . . 1 Operator 1 | . . . . . . . 1 . . . . . . . . . Drone 2 | . . . . . . . . . . . 2 . . . . . Watcher 6 | . 1 . . . 2 . 3 . . . . . . . . . Swarmer 36 | . . 3 . . . 3 4 4 . . 3 . 2 . 7 10 Grunt 55 | . 3 . . . . 16 7 2 . . . 3 6 1 13 4 Brawler 3 | . . . . . . 1 . 1 . . . . . . . 1 Duelist 6 | . . . . . . . . . . . . . 1 . . 5 Sentry 13 | . . . . . 4 . 2 . 1 . . . 4 . 1 1 Demolisher 1 | . . . . . . . . . . . . . 1 . . . Specialist 1 | . . . . . . . . . . . . . . . . 1 Hunter 10 | . . . . . . . 1 1 . . . . 1 2 . 5 Programmer 9 | . . . . . . . 3 . . . . . . 2 2 2 Behemoth 3 | . . . . . . . . . . . 1 . 1 . . 1 Packrat 2 | . . . . . . . . 2 . . . . . . . . Best Kill Streak 9 | . 4 3 . . 2 5 4 4 1 . 3 3 3 3 6 9 Combat Bots Only 8 | . 3 3 . . 2 5 3 4 1 . 3 3 3 2 6 8 Max Kills in Single Turn 5 | . 2 1 . . 1 3 2 1 1 . 1 1 2 2 3 5 Gunslinging . | . . . . . . . . . . . . . . . . . Exploded 4 | . . . . . . 3 . . . . . . . . 3 4 Melee 1 | . . . . . . . . . . . . . . . 1 . Uniques/NPCs Destroyed . | . . . . . . . . . . . . . . . . . Combat | -11 -10 -10 -10 -9 -8 -8 -7 -7 -7 -7 -6 -6 -6 -6 -6 -5 -------- Run | Yrd Mat Min Exi Min Mat Gar Fac Low Low Dat Pro Fac Gar Fac Gar Fac Hostile Shots Fired 845 | . 21 12 . . 20 92 188 31 9 9 35 2 69 18 65 274 Missed 276 | . 9 5 . . 8 31 63 12 5 6 13 . 25 5 20 74 Hits 569 | . 12 7 . . 12 61 125 19 4 3 22 2 44 13 45 200 Melee 13 | . . . . . . 1 1 . . . . . . . . 11 Projectile 556 | . 12 7 . . 12 60 124 19 4 3 22 2 44 13 45 189 AOE 3 | . . . . . . . . . . . . . 3 . . . Critical Strikes 17 | . 1 . . . 1 2 1 1 . . . . . . . 11 Part Disruptions 1 | . . . . . . . . . . . . . . . . 1 Damage Taken 8389 | . 167 58 . . 217 1027 1508 290 28 128 282 32 680 144 511 3317 Core 1679 | . 70 32 . . 42 151 213 13 14 . 64 . 37 26 16 1001 Absorbed by Shields 1564 | . . . . . . . . . . . . . 9 . 318 1237 Redirected to Shielding 17 | . . . . . . . 17 . . . . . . . . . Ignored by Resistances 188 | . . . . . . . 121 16 3 15 8 4 21 . . . Regen/Repaired (Parts) 233 | . . . . . . . 115 . . . . 118 . . . . Core Remaining (%) 73 | 100 . . . 59 . 64 . . . . 56 . . . 90 . Volleys Fired 502 | . 16 7 . 1 33 83 73 27 3 8 14 10 69 21 64 73 Largest 4 | . 2 2 . 2 2 2 3 3 3 3 3 3 3 3 3 4 Hottest 390 | . 53 46 . 46 46 60 185 130 130 130 130 215 296 296 339 390 Shots Fired 1100 | . 32 14 . 2 61 146 164 82 8 23 43 18 142 61 125 179 Gun 541 | . 31 14 . 2 56 124 87 55 8 23 43 8 49 20 12 9 Cannon 525 | . . . . . 2 3 77 27 . . . 10 93 41 108 164 Launcher 34 | . 1 . . . 3 19 . . . . . . . . 5 6 Special . | . . . . . . . . . . . . . . . . . Kinetic 451 | . 31 14 . 2 58 127 72 55 6 16 28 . . . . 42 Thermal 615 | . . . . . . . 92 27 2 7 15 18 142 61 120 131 Explosive 34 | . 1 . . . 3 19 . . . . . . . . 5 6 Electromagnetic . | . . . . . . . . . . . . . . . . . Robot Hit Streak 38 | . 9 3 . 1 8 38 10 9 5 9 17 13 15 6 14 10 Robot Miss Streak 14 | . 2 4 . 1 3 2 4 3 1 3 14 . 2 4 3 4 Penetration Max . | . . . . . . . . . . . . . . . . . Secondary Targets 4 | . 2 1 . . . . . . . . 1 . . . . . Max Gunslinging Chain 1 | . 1 1 . . . . . . . . 1 . . . . . Shots Hit Robots 617 | . 23 6 . 1 36 109 92 43 8 20 26 8 60 18 65 102 Core Hits 304 | . 10 3 . . 17 54 34 17 5 12 15 9 27 10 30 61 Critical Kills 16 | . . . . . 1 1 1 1 . . . 1 3 2 4 2 Critical Parts Destroyed 5 | . . . . . . 1 . . . . . . . . . 4 Critical Strikes 31 | . . . . . 2 2 4 1 . . . 1 3 3 7 8 Burn 3 | . . . . . . . 1 . . . . . . 1 1 . Meltdown 13 | . . . . . . . 1 1 . . . 1 3 2 4 1 Destroy 10 | . . . . . 2 2 . . . . . . . . . 6 Blast 3 | . . . . . . . 2 . . . . . . . . 1 Impale 2 | . . . . . . . . . . . . . . . 2 . Melee Attacks 33 | . . . . . . . 2 . . 1 . . . . 18 12 Impact . | . . . . . . . . . . . . . . . . . Slashing 3 | . . . . . . . 2 . . 1 . . . . . . Piercing 30 | . . . . . . . . . . . . . . . 18 12 Sneak Attacks 4 | . . . . . . . . . . 1 . . . . . 3 Combat Hostiles . | . . . . . . . . . . . . . . . . . Follow-up Attacks . | . . . . . . . . . . . . . . . . . Damage Inflicted 23343 | . 476 100 . 18 585 2568 2323 893 135 425 585 290 2793 893 3736 7523 Guns 5766 | . 364 100 . 18 585 1205 713 384 135 326 585 177 750 153 134 137 Cannons 10333 | . . . . . . 73 1357 509 . . . 113 2043 740 1847 3651 Explosions 5756 | . 112 . . . . 1290 203 . . . . . . . 861 3290 Melee 1488 | . . . . . . . 50 . . 99 . . . . 894 445 Ramming . | . . . . . . . . . . . . . . . . . Kinetic 4736 | . 364 100 . 18 585 1278 759 384 91 200 292 . . . . 665 Thermal 11566 | . . . . . . . 1514 509 44 126 293 290 2793 893 1981 3123 Explosive 5553 | . 112 . . . . 1290 . . . . . . . . 861 3290 Electromagnetic . | . . . . . . . . . . . . . . . . . Impact . | . . . . . . . . . . . . . . . . . Slashing 149 | . . . . . . . 50 . . 99 . . . . . . Piercing 1339 | . . . . . . . . . . . . . . . 894 445 Highest Corruption 17 | . . . . . . 1 3 3 3 3 3 . . 1 1 17 Average Corruption 2 | . . . . . . 1 1 3 3 3 3 . . 1 1 15 Corruption Purged . | . . . . . . . . . . . . . . . . . Corruption Blocked . | . . . . . . . . . . . . . . . . . Effects 98 | . . . . . . 7 6 14 14 6 17 . . 2 16 16 Message Errors 27 | . . . . . . 3 2 . 4 3 3 . . 2 5 5 Matter Fused 24 | . . . . . . 2 1 2 3 2 5 . . . 6 3 Heat Flow Errors 8 | . . . . . . . 2 2 . . 1 . . . 2 1 Energy Discharges 7 | . . . . . . 1 1 2 1 . 2 . . . . . Parts Rejected 1 | . . . . . . 1 . . . . . . . . . . Parts Fused 1 | . . . . . . . . 1 . . . . . . . . Data Loss (minor) 15 | . . . . . . . . 3 5 . 2 . . . 1 4 Data Loss (major) 7 | . . . . . . . . 2 . 1 3 . . . 1 . Misfires 4 | . . . . . . . . 1 . . 1 . . . 1 1 Alerts 1 | . . . . . . . . 1 . . . . . . . . Misdirections 1 | . . . . . . . . . . . . . . . . 1 Weapon Failures 2 | . . . . . . . . . 1 . . . . . . 1 Overload Shots . | . . . . . . . . . . . . . . . . . Overflow Damage 959 | . . . . . . 17 41 20 . . . . 31 35 210 605 Projectiles 516 | . . . . . . 1 29 20 . . . . 31 35 156 244 Explosions 335 | . . . . . . 16 12 . . . . . . . 20 287 Melee 108 | . . . . . . . . . . . . . . . 34 74 Knockbacks 7 | . . . . . . 1 1 . . . . . . . . 5 Impact . | . . . . . . . . . . . . . . . . . Kinetic 6 | . . . . . . 1 1 . . . . . . . . 4 Secondary 1 | . . . . . . . . . . . . . . . . 1 Self-Inflicted Damage 574 | . . . . . 38 104 35 . . . . . . . 81 316 Shots 14 | . . . . . 1 5 1 . . . . . . . 1 6 Rammed . | . . . . . . . . . . . . . . . . . Targets Rammed . | . . . . . . . . . . . . . . . . . Kicked . | . . . . . . . . . . . . . . . . . Crushed . | . . . . . . . . . . . . . . . . . Highest Temperature 408 | . 28 . . . . . 60 116 . 46 . 77 266 53 280 408 Average Temperature 76 | . 10 . . . . . 21 55 . 21 . 45 89 20 72 88 Received Heat Transfer 2019 | . 111 . . . 72 567 393 90 12 . 24 18 126 27 103 476 Effects 1 | . . . . . . . . . . . . . . . 1 . Interference 1 | . . . . . . . . . . . . . . . 1 . Siege Activations . | . . . . . . . . . . . . . . . . . Martial Activations . | . . . . . . . . . . . . . . . . . Shielding Activations . | . . . . . . . . . . . . . . . . . Robots Disrupted . | . . . . . . . . . . . . . . . . . Combat Hostiles . | . . . . . . . . . . . . . . . . . Robots Corrupted . | . . . . . . . . . . . . . . . . . Combat Hostiles . | . . . . . . . . . . . . . . . . . Parts Fried . | . . . . . . . . . . . . . . . . . Impact Corruptions . | . . . . . . . . . . . . . . . . . Robots Melted 16 | . . . . . . . 3 1 . . . 1 4 2 4 1 Combat Hostiles 13 | . . . . . . . 2 1 . . . 1 3 2 3 1 Parts Melted 37 | . . . . . . . 6 5 1 . . 1 10 3 6 5 Heat Transferred 13013 | . . . . . . . 2807 1000 100 375 575 484 2381 888 1813 2590 Parts Sabotaged . | . . . . . . . . . . . . . . . . . Parts Stolen . | . . . . . . . . . . . . . . . . . Parts Stripped . | . . . . . . . . . . . . . . . . . Power Chain Reactions . | . . . . . . . . . . . . . . . . . Alert | -11 -10 -10 -10 -9 -8 -8 -7 -7 -7 -7 -6 -6 -6 -6 -6 -5 ------- Run | Yrd Mat Min Exi Min Mat Gar Fac Low Low Dat Pro Fac Gar Fac Gar Fac Maximum Alert Level 5 | . . . . . . 3 2 . . . . 2 5 3 5 5 Low Security (%) 18 | 100 100 100 . 100 100 16 . . . . . . . . . . Level 1 23 | . . . . . . 28 99 . . . . 45 18 . . . Level 2 12 | . . . . . . 37 . . . . . 54 28 . 2 . Level 3 16 | . . . . . . 17 . . . . . . 11 100 42 4 Level 4 16 | . . . . . . . . . . . . . 31 . 36 40 Level 5 12 | . . . . . . . . . . . . . 9 . 18 54 High Security . | . . . . . . . . . . . . . . . . . Max Security . | . . . . . . . . . . . . . . . . . Peak Influence 2084 | . 78 75 . . 60 716 405 . . . . 600 1659 982 1892 2084 Initial 993 | . . 6 . . . 21 375 . . . . 600 199 870 601 993 Average 743 | . 21 10 . . 19 408 294 . . . . 424 915 913 1200 1665 Influence Increases 8183 | . 105 85 . . 289 785 610 190 20 . 110 679 1740 385 1331 1854 Destroy 0b10 Robot/C 3360 | . 60 60 . . 120 400 340 160 20 . 80 60 700 160 600 600 Destroy 0b10 Robot/NC 215 | . 20 . . . 25 5 35 . . . 10 . 15 30 20 55 Destroy Leader 530 | . 14 10 . . 60 30 100 30 . . 20 . 30 64 50 122 Allied During Kill 597 | . . . . . 2 . . . . . . . 484 64 47 . Trap Triggered on 0b10 10 | . . . . . . . . . . . . . . . . 10 Successful Hack 110 | . . . . . 18 12 34 . . . . 3 . 15 . 28 Disable Machine 480 | . . . . . 15 15 60 . . . . . 30 15 15 330 Anti-Garrison Action 1200 | . . . . . . 200 . . . . . . 350 . 450 200 Destroy Structure 781 | . 11 . . . 19 93 11 . . . . 1 101 37 134 374 Advance Influence 600 | . . . . . . . . . . . . 600 . . . . Lose Combat Pursuer 300 | . . 15 . . 30 30 30 . . . . 15 30 . 15 135 Influence Decreases 6102 | . 87 103 . . 256 102 933 484 119 . 110 394 366 1185 298 1665 Entered New Map 2562 | . . 12 . . . 12 341 146 19 . . . 86 789 258 899 Time Decay 2610 | . 87 91 . . 186 . 542 318 100 . 110 294 . 326 . 556 Search Patrol Dispatched 100 | . . . . . . . . . . . . 100 . . . . Lost Part 350 | . . . . . 10 90 50 20 . . . . . 10 . 170 Lost Ally 480 | . . . . . 60 . . . . . . . 280 60 40 40 Squads Dispatched 36 | . . . . . 2 . 7 . . . . 1 . 7 . 19 Investigation 9 | . . . . . 1 . 2 . . . . . . 2 . 4 Extermination 7 | . . . . . . . 3 . . . . 1 . 2 . 1 Reinforcement 8 | . . . . . 1 . 2 . . . . . . 1 . 4 Assault 11 | . . . . . . . . . . . . . . 2 . 9 Garrison . | . . . . . . . . . . . . . . . . . Intercept 1 | . . . . . . . . . . . . . . . . 1 Searches Triggered 1 | . . . . . . . . . . . . 1 . . . . Construction Impeded 2 | . . . . . . . . . . . . . . . . 2 Haulers Reinforced 1 | . . . . . . . 1 . . . . . . . . . Active Scanning Responses . | . . . . . . . . . . . . . . . . . Cargo Convoy Interrupts . | . . . . . . . . . . . . . . . . . Stealth | -11 -10 -10 -10 -9 -8 -8 -7 -7 -7 -7 -6 -6 -6 -6 -6 -5 --------- Run | Yrd Mat Min Exi Min Mat Gar Fac Low Low Dat Pro Fac Gar Fac Gar Fac Distress Signals 2 | . . . . . 1 . . . . . . . . 1 . . Communications Jammed . | . . . . . . . . . . . . . . . . . Distress Signals . | . . . . . . . . . . . . . . . . . Times Spotted 217 | . 4 4 . . 10 25 29 8 1 4 9 4 29 6 30 54 Peak Tracking Total 12 | . 3 3 . . 6 6 6 4 1 3 4 3 5 1 6 12 Tactical Retreats 13 | . . 1 . . 1 2 2 . . . . 1 2 . 1 3 Traps | -11 -10 -10 -10 -9 -8 -8 -7 -7 -7 -7 -6 -6 -6 -6 -6 -5 ------- Run | Yrd Mat Min Exi Min Mat Gar Fac Low Low Dat Pro Fac Gar Fac Gar Fac Traps Triggered 37 | . 1 . . . . 11 5 . . . . . 10 2 5 3 Indirectly . | . . . . . . . . . . . . . . . . . Trap Hack Attempts . | . . . . . . . . . . . . . . . . . Triggered . | . . . . . . . . . . . . . . . . . Disarmed . | . . . . . . . . . . . . . . . . . Reprogrammed . | . . . . . . . . . . . . . . . . . Reused . | . . . . . . . . . . . . . . . . . Traps Extracted . | . . . . . . . . . . . . . . . . . Installed . | . . . . . . . . . . . . . . . . . Triggered 1 | . . . . . . . . . . . . . . . . 1 Machines | -11 -10 -10 -10 -9 -8 -8 -7 -7 -7 -7 -6 -6 -6 -6 -6 -5 ---------- Run | Yrd Mat Min Exi Min Mat Gar Fac Low Low Dat Pro Fac Gar Fac Gar Fac Machines Disabled 49 | . . . . . 1 5 4 . . . . . 7 1 9 22 Max in Single Turn 6 | . . . . . 1 1 3 . . . . . 1 1 2 6 Garrison Access 1 | . . . . . . . . . . . . . . . . 1 Garrison Relay 16 | . . . . . . 4 . . . . . . 5 . 7 . Machines Repaired . | . . . . . . . . . . . . . . . . . Machines Dismantled . | . . . . . . . . . . . . . . . . . Machines Sabotaged . | . . . . . . . . . . . . . . . . . Overloaded Fab Kills . | . . . . . . . . . . . . . . . . . Hacking | -11 -10 -10 -10 -9 -8 -8 -7 -7 -7 -7 -6 -6 -6 -6 -6 -5 --------- Run | Yrd Mat Min Exi Min Mat Gar Fac Low Low Dat Pro Fac Gar Fac Gar Fac Machines Accessed 46 | . 1 . 2 . 4 2 10 . . 4 . 2 4 8 1 8 Terminals 24 | . 1 . . . 2 2 5 . . . . . 4 5 1 4 Fabricators 4 | . . . . . . . 2 . . . . . . 1 . 1 Repair Stations 2 | . . . . . . . 1 . . . . 1 . . . . Recycling Units . | . . . . . . . . . . . . . . . . . Scanalyzers 5 | . . . . . 1 . 1 . . . . . . 1 . 2 Garrison Access 5 | . . . . . 1 . 1 . . . . 1 . 1 . 1 Total Hacks 126 | . 2 . 2 . 18 3 20 . . 33 . 5 5 15 2 21 Successful 75 | . 2 . 2 . 11 1 11 . . 33 . 3 . 5 1 6 Failed 50 | . . . . . 6 2 9 . . . . 2 5 10 1 15 Catastrophic 14 | . . . . . . 1 4 . . . . . 3 3 . 3 Database Lockouts 1 | . . . . . 1 . . . . . . . . . . . Manual 17 | . . . 1 . 2 . 5 . . . . . . 5 . 4 Terminals 43 | . 2 . . . 5 3 8 . . . . . 5 9 2 9 Fabricators 12 | . . . . . . . 6 . . . . . . 3 . 3 Repair Stations 6 | . . . . . . . 2 . . . . 4 . . . . Recycling Units . | . . . . . . . . . . . . . . . . . Scanalyzers 21 | . . . . . 11 . 3 . . . . . . 2 . 5 Garrison Access 9 | . . . . . 2 . 1 . . . . 1 . 1 . 4 Terminal Hacks 46 | . 2 . 2 . 1 1 3 . . 33 . . . . 1 3 Record 12 | . . . 1 . . . . . . 11 . . . . . . Part Schematic 13 | . . . . . . . 1 . . 12 . . . . . . Robot Schematic 8 | . . . . . . . 1 . . 7 . . . . . . Robot Analysis 1 | . 1 . . . . . . . . . . . . . . . Prototype ID Bank 6 | . 1 . . . 1 . 1 . . 3 . . . . . . Branch Access Points 1 | . . . . . . . . . . . . . . . . 1 Locate Traps 1 | . . . . . . . . . . . . . . . . 1 Zone Layout 1 | . . . . . . . . . . . . . . . . 1 Patrol Navigation 2 | . . . . . . 1 . . . . . . . . 1 . Proto ID Catalog 1 | . . . 1 . . . . . . . . . . . . . Fabricator Hacks 5 | . . . . . . . 3 . . . . . . 2 . . Network Status 2 | . . . . . . . 1 . . . . . . 1 . . Load Schematic 1 | . . . . . . . 1 . . . . . . . . . Build 2 | . . . . . . . 1 . . . . . . 1 . . Repair Station Hacks 4 | . . . . . . . 2 . . . . 2 . . . . Scan Component 2 | . . . . . . . 1 . . . . 1 . . . . Repair 2 | . . . . . . . 1 . . . . 1 . . . . Recycling Unit Hacks . | . . . . . . . . . . . . . . . . . Scanalyzer 9 | . . . . . 8 . . . . . . . . . . 1 Insert Component 2 | . . . . . 2 . . . . . . . . . . . Analyze 3 | . . . . . 3 . . . . . . . . . . . Retrieve Study 4 | . . . . . 3 . . . . . . . . . . 1 Garrison Access Hacks 3 | . . . . . 1 . . . . . . 1 . 1 . . Unlock Access 3 | . . . . . 1 . . . . . . 1 . 1 . . Unauthorized Hacks 8 | . . . . . 1 . 3 . . . . . . 2 . 2 Terminals 4 | . . . . . 1 . 1 . . . . . . 1 . 1 Assimilate 2 | . . . . . . . . . . . . . . 1 . 1 Botnet 2 | . . . . . 1 . 1 . . . . . . . . . Fabricators 3 | . . . . . . . 2 . . . . . . 1 . . Haulers 3 | . . . . . . . 2 . . . . . . 1 . . Repair Stations . | . . . . . . . . . . . . . . . . . Recycling Units . | . . . . . . . . . . . . . . . . . Scanalyzers . | . . . . . . . . . . . . . . . . . Garrison Access 1 | . . . . . . . . . . . . . . . . 1 Jam 1 | . . . . . . . . . . . . . . . . 1 Data Cores Recovered 1 | . . . . . . . 1 . . . . . . . . . Used 1 | . . . . . . . 1 . . . . . . . . . Hacking Detections 32 | . 1 . . . 3 2 8 . . . . 1 4 5 1 7 Full Trace Events 8 | . . . . . 1 . 2 . . . . . . 2 . 3 Feedback Events . | . . . . . . . . . . . . . . . . . Feedback Blocked . | . . . . . . . . . . . . . . . . . Robot Schematics Acquired 8 | . . . . . . . 1 . . 7 . . . . . . Robots Built 3 | . . . . . . . . . . . . . . 3 . . Authchips . | . . . . . . . . . . . . . . . . . Time 134 | . . . . . . . . . . . . . . 134 . . Total Robot Build Rating 12 | . . . . . . . . . . . . . . 12 . . Part Schematics Acquired 15 | . . . . . 2 . 1 . . 12 . . . . . . Parts Built 2 | . . . . . . . 2 . . . . . . . . . Authchips . | . . . . . . . . . . . . . . . . . Time 106 | . . . . . . . 106 . . . . . . . . . Total Part Build Rating 12 | . . . . . . . 12 . . . . . . . . . Part Studies Acquired 3 | . . . . . 3 . . . . . . . . . . . Parts Repaired 2 | . . . . . . . 1 . . . . 1 . . . . Time 82 | . . . . . . . 44 . . . . 38 . . . . Parts Recycled . | . . . . . . . . . . . . . . . . . Recycled Matter . | . . . . . . . . . . . . . . . . . Retrieved Matter . | . . . . . . . . . . . . . . . . . Retrieved Components . | . . . . . . . . . . . . . . . . . Parts Scanalyzed 2 | . . . . . 2 . . . . . . . . . . . Part Schematics Acquired 2 | . . . . . 2 . . . . . . . . . . . Parts Damaged . | . . . . . . . . . . . . . . . . . Bothacking | -11 -10 -10 -10 -9 -8 -8 -7 -7 -7 -7 -6 -6 -6 -6 -6 -5 ------------ Run | Yrd Mat Min Exi Min Mat Gar Fac Low Low Dat Pro Fac Gar Fac Gar Fac Used RIF Installer . | . . . . . . . . . . . . . . . . . Robots Hacked . | . . . . . . . . . . . . . . . . . Non-combat . | . . . . . . . . . . . . . . . . . Combat . | . . . . . . . . . . . . . . . . . Robot Hacks Applied . | . . . . . . . . . . . . . . . . . Relay Couplers Released 65 | . . . . . . 18 . . . . . . 20 . 27 . Machine Destruction 65 | . . . . . . 18 . . . . . . 20 . 27 . Fabnet Peak Effective % . | . . . . . . . . . . . . . . . . . Robots Rewired 19 | . . . . . . . . . . . . . 19 . . . Allies Hacked . | . . . . . . . . . . . . . . . . . Hacks Repelled . | . . . . . . . . . . . . . . . . . Allies | -11 -10 -10 -10 -9 -8 -8 -7 -7 -7 -7 -6 -6 -6 -6 -6 -5 -------- Run | Yrd Mat Min Exi Min Mat Gar Fac Low Low Dat Pro Fac Gar Fac Gar Fac Total Allies 30 | . . 1 . 3 . . . . . . . . 22 3 . 1 Largest Group 16 | . . 1 1 3 3 . . . . . . . 16 4 2 1 Highest-Rated Group 408 | . . 31 31 40 40 . . . . . . . 408 250 190 26 Highest-Rated Ally 95 | . . 31 31 16 16 . . . . . . . 95 95 95 26 Initial Warlord ECA Mod 23 | . . . . . . . 5 5 5 5 4 4 4 13 13 23 Warlord Squad Rendezvous 2 | . . . . . . . . . . . . . . . . 2 Chimera 1 | . . . . . . . . . . . . . . . . 1 Ghost 1 | . . . . . . . . . . . . . . . . 1 Total Orders . | . . . . . . . . . . . . . . . . . Ally Attacks 213 | . . . . . 32 . . . . 18 . . 117 18 22 6 Total Damage 5366 | . . . . . 361 . . . . 997 . . 2528 579 587 314 Kills 41 | . . . . . 2 . . . . 3 . . 24 5 7 . Allies Corrupted 1 | . . . . . . . . . . . . . . . . 1 Allies Melted . | . . . . . . . . . . . . . . . . . Turrets Deployed 3 | . . . . . . . . . . 1 . . . . . 2 Intel | -11 -10 -10 -10 -9 -8 -8 -7 -7 -7 -7 -6 -6 -6 -6 -6 -5 ------- Run | Yrd Mat Min Exi Min Mat Gar Fac Low Low Dat Pro Fac Gar Fac Gar Fac Active Infowar (turns) 1659 | . . . . . 483 2 451 . . . . 640 2 . . 81 Structural 1652 | . . . . . 483 2 451 . . . . 640 2 . . 74 Jamming 7 | . . . . . . . . . . . . . . . . 7 Robot Analysis Total 154 | . 1 . . . . . . . . 153 . . . . . . Derelict Logs Recovered 12 | . . 1 . 3 . . . 3 2 . 3 . . . . . Drone Launches . | . . . . . . . . . . . . . . . . . Drone Recoveries . | . . . . . . . . . . . . . . . . . Exploration | -11 -10 -10 -10 -9 -8 -8 -7 -7 -7 -7 -6 -6 -6 -6 -6 -5 ------------- Run | Yrd Mat Min Exi Min Mat Gar Fac Low Low Dat Pro Fac Gar Fac Gar Fac Turns Passed 13628 | 53 301 554 237 303 627 1109 1541 713 682 281 965 642 1791 728 1466 1635 Spaces Moved 8196 | 44 225 500 222 271 483 677 989 462 496 162 572 276 806 352 597 1062 Core 60 | 1 . . . . . . . . . . . . . . . 59 Treads . | . . . . . . . . . . . . . . . . . Legs . | . . . . . . . . . . . . . . . . . Wheels 7664 | 43 225 500 222 271 483 677 989 462 496 162 572 276 806 352 597 531 Hover 13 | . . . . . . . . . . . . . . . . 13 Flight 459 | . . . . . . . . . . . . . . . . 459 Fastest Speed 40 | 50 90 105 105 105 95 95 115 135 135 90 135 150 150 165 165 40 Average Speed 132 | 90 101 105 105 105 100 107 124 138 135 126 161 150 165 166 180 115 Slowest Speed 240 | 100 105 105 105 105 105 120 145 145 135 135 210 150 180 240 190 200 Overloaded Moves . | . . . . . . . . . . . . . . . . . Propulsion Burnouts . | . . . . . . . . . . . . . . . . . Robots Hopped . | . . . . . . . . . . . . . . . . . Potential Cave-ins . | . . . . . . . . . . . . . . . . . Cave-ins Triggered . | . . . . . . . . . . . . . . . . . Exploration Rate (%) 54 | 4 41 88 60 80 38 77 31 63 76 79 72 7 88 16 76 37 Regions Visited 16 Branch Regions 7 Pre-discovered Areas 30 | . . . 1 1 . . . 2 . 25 1 . . . . . Known Exits Taken 5 | . . . . . 1 . 1 1 . . . 1 . 1 . . Unknown Exits Taken 8 | 1 1 1 1 1 . . . . 1 1 1 . . . . . Scrap Searched 10 | . . 1 . 1 . . . 3 1 . 4 . . . . . Spaces Dug 118 | . . . . . 18 22 . . . . . 1 10 17 10 40 Terrain Destroyed 496 | . 10 . . . 18 76 17 1 . . . 1 23 25 65 260 Melee 6 | . . . . . . . . . . . . . . . . 6 Projectile 132 | . . . . . . . 2 1 . . . 1 23 25 29 51 AOE 358 | . 10 . . . 18 76 15 . . . . . . . 36 203 Terrain Rammed . | . . . . . . . . . . . . . . . . . Walls Destroyed . | . . . . . . . . . . . . . . . . . Machines Disabled . | . . . . . . . . . . . . . . . . . Actions | -11 -10 -10 -10 -9 -8 -8 -7 -7 -7 -7 -6 -6 -6 -6 -6 -5 --------- Run | Yrd Mat Min Exi Min Mat Gar Fac Low Low Dat Pro Fac Gar Fac Gar Fac Total 10070 | 56 265 517 226 287 560 905 1183 496 504 234 595 489 1156 450 837 1310 Wait 593 | . 5 5 . 16 19 30 59 . . 4 1 184 23 67 81 99 Move 8180 | 43 224 499 221 270 482 676 988 461 495 161 571 275 805 351 596 1062 Hop . | . . . . . . . . . . . . . . . . . Pick Up 137 | 10 11 3 3 . 8 7 24 3 4 22 2 6 12 2 6 14 Fast Attach 26 | . 1 . . . 3 1 5 1 . 1 2 1 2 2 2 5 Attach 60 | 3 5 . . . 3 9 10 3 1 6 . 3 . . . 17 Detach 11 | . 1 . . . . 1 1 . . 4 1 . . . . 3 Swap 74 | . 2 . . . 6 10 8 . . 4 . 5 10 3 15 11 Drop 103 | . . 3 2 . 6 . 13 1 1 23 4 5 20 4 15 6 Fire 502 | . 16 7 . 1 33 83 73 27 3 8 14 10 69 21 64 73 Melee 33 | . . . . . . . 2 . . 1 . . . . 18 12 Ram . | . . . . . . . . . . . . . . . . . Kick . | . . . . . . . . . . . . . . . . . Crush . | . . . . . . . . . . . . . . . . . Escape Stasis 208 | . . . . . . 88 . . . . . . 72 . 40 8 Rewire 143 | . . . . . . . . . . . . . 143 . . . Trap . | . . . . . . . . . . . . . . . . . Miscellaneous . | . . . . . . . . . . . . . . . . . Route ------- -11/Scrapyard -10/Materials (discovered 2 exits: *Mat / [*Min]) -10/Mines (discovered 3 exits: *Mat x2 / *Exi) -10/Exiles -9/Mines -8/Materials (discovered 2 exits: *Fac / Gar) -8/Garrison (discovered 3 exits: *Fac x3) -7/Factory (discovered 2 exits: *Fac / *Low) -7/Lower Caves -7/Lower Caves -7/Data Miner -6/Proximity Caves -6/Factory (discovered 3 exits: Fac / Low / Gar) -6/Garrison (discovered 3 exits: *Fac x3) -6/Factory (discovered 2 exits: *Low / Gar) -6/Garrison (discovered 3 exits: *Fac x3) -5/Factory (discovered 4 exits: *Fac x2 / Upp x2) History --------- Turn | Location | Event 9 | -11/Scrapyard | Discovered new exit (range 16) 54 | -11/Scrapyard | Entered Materials 307 | -10/Materials | Build established: Mutant 314 | -10/Materials | Discovered new exit (range 11) 349 | -10/Materials | Discovered new exit (range 6) 355 | -10/Materials | Entered Mines 418 | -10/Mines | Met a Derelict bent on vengeance 542 | -10/Mines | Discovered new exit (range 4) 569 | -10/Mines | Identified exit to Materials 624 | -10/Mines | Received a Rocket Launcher from a helpful Derelict 667 | -10/Mines | Received a Mining Laser from a helpful Derelict 904 | -10/Mines | Deemed a non-threat by the Exiles lab entrance 905 | -10/Mines | Discovered new exit (range 5) 909 | -10/Mines | Entered Exiles 909 | -10/Exiles | Accompanied by 1 ally 935 | -10/Exiles | Met 8R-AWN 954 | -10/Exiles | Met EX-HEX 986 | -10/Exiles | Met EX-BIN 999 | -10/Exiles | Aligned with FarCom system 1000 | -10/Exiles | Given EX-Vault access code 1024 | -10/Exiles | Opened EX-Vault 1032 | -10/Exiles | Found Deploy-a-Sentry 1034 | -10/Exiles | Found Deploy-a-Sentry 1036 | -10/Exiles | Found Deploy-a-Sentry 1058 | -10/Exiles | Warned to stay clear of 0b10 Research branches 1092 | -10/Exiles | Met EX-DEC 1098 | -10/Exiles | Learned location of Zion (-6) 1132 | -10/Exiles | Discovered new exit (range 12) 1146 | -10/Exiles | Left Exiles lab with Deploy-a-Sentry 1146 | -10/Exiles | Entered Mines 1155 | -9/Mines | Learned 2 Materials zone layouts 1236 | -9/Mines | Learned location of Storage (-9) 1242 | -9/Mines | Assisted by bots powering up and referring to "LRC-V3" 1283 | -9/Mines | YI-UF0 nonchalantly dropped a Grenade Launcher on the ground 1359 | -9/Mines | Learned Materials garrison access intel 1438 | -9/Mines | Discovered new exit (range 7) 1449 | -9/Mines | Entered Materials 1449 | -8/Materials | Accompanied by 3 allies 1449 | -8/Materials | Evolved 4 slots: Utility x4 1450 | -8/Materials | Identified exit to Factory 1451 | -8/Materials | Loaded intel: 1 garrison access location 1850 | -8/Materials | Central database locked down 2073 | -8/Materials | Identified exit to Garrison 2076 | -8/Materials | Entered Garrison 2162 | -8/Garrison | Triggered checkpoint 2380 | -8/Garrison | Discovered exit to Factory (range 9) 2402 | -8/Garrison | Triggered checkpoint 2450 | -8/Garrison | Garrison Relay disabled 2538 | -8/Garrison | Triggered checkpoint 2692 | -8/Garrison | Garrison Relay disabled 2713 | -8/Garrison | Discovered exit to Factory (range 14) 2802 | -8/Garrison | Triggered checkpoint 2895 | -8/Garrison | Discovered exit to Factory (range 10) 2940 | -8/Garrison | Triggered checkpoint 2988 | -8/Garrison | Garrison Relay disabled 3140 | -8/Garrison | Build established: Scavenger-Mutant 3185 | -8/Garrison | Entered Factory 3185 | -7/Factory | Evolved 2 slots: Utility x1, Weapon x1 3548 | -7/Factory | Repaired Arm. Huge Wheel? 3642 | -7/Factory | Fabricated Imp. Focal Shield (x2) 4337 | -7/Factory | Build established: Tank 4438 | -7/Factory | Discovered new exit (range 15) 4495 | -7/Factory | Identified exit to Lower Caves 4627 | -7/Factory | Discovered new exit (range 12) 4726 | -7/Factory | Entered Lower Caves 4742 | -7/Lower Caves | Met a Warlord Commander 4743 | -7/Lower Caves | Learned location of Warlord (-5) 4744 | -7/Lower Caves | Warlord Commander delivered Encrypted Comm Array 4747 | -7/Lower Caves | Found Encrypted Comm Array 5073 | -7/Lower Caves | Identified exit to Lower Caves 5218 | -7/Lower Caves | Learned 12 Factory zone layouts 5359 | -7/Lower Caves | Encountered a Warlord checkpoint 5439 | -7/Lower Caves | Entered another Lower Caves area 5603 | -7/Lower Caves | Attracted the attention of an 0b10 checkpoint 5769 | -7/Lower Caves | Discovered new exit (range 9) 5966 | -7/Lower Caves | Learned location of 1 exit from Factory 5968 | -7/Lower Caves | Learned 4 Factory zone layouts 5972 | -7/Lower Caves | Found DRS Beacon 6121 | -7/Lower Caves | Entered Data Miner 6121 | -7/Data Miner | Discovered new exit (range 6) 6155 | -7/Data Miner | Met Data Miner 6179 | -7/Data Miner | Learned location of Section 7 (-3) 6179 | -7/Data Miner | Acquired the access code to Warlord's prototype stash 6201 | -7/Data Miner | Received God Mode back door access code from Data Miner 6260 | -7/Data Miner | Interfaced with the Data Conduit 6264 | -7/Data Miner | DAS Turret deployed 6402 | -7/Data Miner | Entered Proximity Caves 6454 | -6/Proximity Caves | Spotted B-75 Beast 6513 | -6/Proximity Caves | Destroyed B-75 Beast 6615 | -6/Proximity Caves | Build established: Gunner 6722 | -6/Proximity Caves | Spotter reported a threat 6836 | -6/Proximity Caves | Spotter reported a threat 7108 | -6/Proximity Caves | Spotter reported a threat 7148 | -6/Proximity Caves | Learned Factory terminal intel 7157 | -6/Proximity Caves | Learned Factory security intel 7191 | -6/Proximity Caves | Spotter reported a threat 7274 | -6/Proximity Caves | Discovered new exit (range 4) 7367 | -6/Proximity Caves | Entered Factory 7367 | -6/Factory | Evolved 2 slots: Power x1, Utility x1 7368 | -6/Factory | Identified exit to Lower Caves 7369 | -6/Factory | Identified exit to Factory 7371 | -6/Factory | Loaded intel: 301 machine locations 7372 | -6/Factory | Loaded intel: 25 terminal locations 7427 | -6/Factory | Repaired Reflective Plating 7717 | -6/Factory | Build established: Derelict-Gunner 7717 | -6/Factory | Search patrols dispatched 8001 | -6/Factory | Identified exit to Garrison 8009 | -6/Factory | Entered Garrison 8010 | -6/Garrison | Loaded intel: 32 machine locations 8269 | -6/Garrison | Triggered checkpoint 8324 | -6/Garrison | Garrison Relay disabled 8336 | -6/Garrison | Build established: Commander-Gunner 8391 | -6/Garrison | Triggered checkpoint 8428 | -6/Garrison | Lost 7 allies 8468 | -6/Garrison | Spotted B-75 Beast 8477 | -6/Garrison | Allies destroyed B-75 Beast 8510 | -6/Garrison | Lost 3 allies 8552 | -6/Garrison | Discovered new exit (range 10) 8597 | -6/Garrison | Triggered checkpoint 8657 | -6/Garrison | Garrison Relay disabled 8863 | -6/Garrison | Rescued a captive Derelict 8935 | -6/Garrison | Triggered checkpoint 8962 | -6/Garrison | Garrison Relay disabled 9058 | -6/Garrison | Triggered checkpoint 9101 | -6/Garrison | Triggered checkpoint 9164 | -6/Garrison | Discovered new exit (range 8) 9235 | -6/Garrison | Triggered checkpoint 9241 | -6/Garrison | Garrison Relay disabled 9412 | -6/Garrison | Spotted B-75 Beast 9421 | -6/Garrison | Destroyed B-75 Beast 9447 | -6/Garrison | Lost 3 allies 9465 | -6/Garrison | Found embedded Infiltrators 9501 | -6/Garrison | Lost 3 allies 9599 | -6/Garrison | Triggered checkpoint 9634 | -6/Garrison | Garrison Relay disabled 9745 | -6/Garrison | Discovered new exit (range 12) 9762 | -6/Garrison | Build established: Gunner 9800 | -6/Garrison | Entered Factory 9800 | -6/Factory | Accompanied by 2 allies 9801 | -6/Factory | Loaded intel: 264 machine locations 9873 | -6/Factory | Discovered exit to Lower Caves (range 5) 10150 | -6/Factory | First assault squad dispatched 10423 | -6/Factory | Fabricated L-41 Fighter? 10526 | -6/Factory | Identified exit to Garrison 10528 | -6/Factory | Entered Garrison 10528 | -6/Garrison | Accompanied by 2 allies 10529 | -6/Garrison | Loaded intel: 34 machine locations 10636 | -6/Garrison | Triggered checkpoint 10725 | -6/Garrison | Garrison Relay disabled 10840 | -6/Garrison | Triggered checkpoint 10867 | -6/Garrison | Triggered checkpoint 10967 | -6/Garrison | Found Fusion Bomb Launcher 11043 | -6/Garrison | Discovered exit to Factory (range 12) 11188 | -6/Garrison | Build established: Mutant 11276 | -6/Garrison | Triggered checkpoint 11337 | -6/Garrison | Garrison Relay disabled 11490 | -6/Garrison | Triggered checkpoint 11602 | -6/Garrison | Discovered exit to Factory (range 10) 11652 | -6/Garrison | Triggered checkpoint 11718 | -6/Garrison | Garrison Relay disabled 11787 | -6/Garrison | Build established: Gunner 11881 | -6/Garrison | Discovered exit to Factory (range 10) 11948 | -6/Garrison | Garrison Relay disabled 11951 | -6/Garrison | Garrison Relay disabled 11969 | -6/Garrison | Garrison Relay disabled 11974 | -6/Garrison | Garrison Relay disabled 11994 | -6/Garrison | Entered Factory 11994 | -5/Factory | Evolved 2 slots: Utility x1, Weapon x1 11995 | -5/Factory | Loaded intel: 292 machine locations 12144 | -5/Factory | Joined by Warlord Chimera squad 12247 | -5/Factory | Discovered new exit (range 6) 12294 | -5/Factory | First assault squad dispatched 12648 | -5/Factory | Discovered new exit (range 15) 12675 | -5/Factory | Identified exit to Factory 12849 | -5/Factory | Destroyed 8 combat bots 12924 | -5/Factory | Joined by Warlord Ghost squad 13236 | -5/Factory | Spotted B-75 Beast 13275 | -5/Factory | System corruption reached 10% 13279 | -5/Factory | DAS Turret deployed 13279 | -5/Factory | Core integrity fell below 50% 13282 | -5/Factory | Destroyed B-75 Beast 13284 | -5/Factory | Released all parts (3) 13288 | -5/Factory | DAS Turret deployed 13294 | -5/Factory | Core integrity fell below 20% 13313 | -5/Factory | Lost 16 parts (1p1n8u6w) 13547 | -5/Factory | Build established: Mutant 13596 | -5/Factory | Intercept squad dispatched 13604 | -5/Factory | Identified exit to Upper Caves 13621 | -5/Factory | Spotted Tracker 13629 | -5/Factory | Destroyed by Tracker with Linked Autogun Last Messages --------------- 13593_ Acquired Imp. Ion Engine. 13595_ Acquired 10 matter. 13596_ ALERT: Reliable intel has pinpointed LRC-V3, intercept squad en route. 13596_ Administrator 6a reveals location of Blade Trap. 13604_ Connecting with Terminal... >>Layout(Zone) Retrieving Zone 6U layout... Downloaded map data. >>Access(Branch) Found 2 branch access points: (90,99) Upper Caves (160,51) Upper Caves Map updated. 13611_ Acquired Imp. Heavy Laser. 13617_ System corrupted: Heat flow error (+162). Tracker: "THREAT CONFIRMED. DEPLOY COMBAT PROGRAMMER." 13621_ Nuclear Pulse Array temporarily disabled. Map ----- +----------------------------------------------------+ | """# #??# ????????????????????????? | | """# ########+####????????????????????????? | | """# / # #?????????????????????????? | | ""# #^ ###########???????????????? | | ""# + ^ ^ "" #??#????????????? | | #%%%% # ^ Y" #? ?? ## #???? | | """#"""" # "" ## #???? | | """#"""" # ######### " #???? | | """#"""" # #???????#### #???? | | ""#"""" + #???????????? ##+##????? | | ""#"""" ####### ####??????####### ###????????? | | #"""" #?????# #?????????# # #??????????? | | #"""" #?????# ########### # ####??"""?"" | | # #?????#!% ## #g #??"""?"" | | #############?????########## #?? #li #??"""?"" | | ???????????????????????????# #####+##g #???????? | | ???????????????????????????# #???????? | | ???????????????????#########;##### #???????? | | ???????????????????# """" #???# ######### | | ???????????????????# """" #???# | | ???????????????????# """" #?######+############ | | ???????????????????# """" #?# #???????? | | ???????????????????#! o #?# ! #??????? | | ??????????########## ! #?# # ?????? | | ??????????# # #?# ! # ??""" | | ??????????# """"" # @ ! #?########### ?""" | | ???######?# """"" #####s######??????????# """ | | ???# #?# """ #### ^""""^^ ???????# | | ???# ""#?# + ""R"" ??????+ """ | | ???# T"#?# """"" ### "" "" """? ??# """ | | ???# ""### """"" #?# """ ?#! """ | | ???# + + """ #?# [ """ #?# | | ???# ### #?# ??# | | ???#= #######+###### ???# | | ???# + ????#######+# | | ???# ###### ??????????# | | ???######????# #??????????+ | | ?????????????# """ """ #??????????# | | ?????????????# ! """ ![[ """ #???????>??# | | ?????????????# !! """ ![ """ #??????????# | | ?????????????# ![ #??????????# | | ?????????????# /// #??????????# | | ?????????????# =[!/ #??????????# | | ?????????????# ######[/ #??????????# | | ?????????????# #????# #??????????# | | ??????????#### #????# #???????? | | ????????? #????# #????????###### | | ????????? #????# #?????????????? | | ?????????##### #????# ############### | | ?????????????##+######## #????# | +----------------------------------------------------+ Best States ------------- Heat Dissipation 116 Energy Generation 41 Energy Capacity 1340 Matter Stores 300 Matter Capacity 300 Sight Range 16 Terrain Scan Density 110 Base Temperature (-) 100 Armor Coverage 600 Resistance: KI 25 Resistance: TH 10 Core Shielding 30 Phase Shifting 5 Evasion (%) 67 Targeting Accuracy 6 Melee Accuracy 5 Target Analysis 8 Core Analysis 6 Recoil Reduction 4 Particle Charging 25 Salvage Targeting 1 Offensive Hacking 10 Item Schematics ----------------- Cld. Ion Engine | -8/Materials | Scanalyzed Cryofiber Web | -8/Materials | Scanalyzed Imp. Focal Shield | -7/Factory | Hacked Combat Drone Bay | -7/Data Miner | Free Lgt. Regenerative Plating | -7/Data Miner | Free Cld. Cesium-ion Thruster | -7/Data Miner | Free Gravity Neutralizer | -7/Data Miner | Free Imp. Heavy Laser | -7/Data Miner | Free Arm. Medium Treads | -7/Data Miner | Free Adv. Salvage Targeting Computer | -7/Data Miner | Free Adv. Plasma Cannon | -7/Data Miner | Free Drone Bay | -7/Data Miner | Free Adv. Cooling System | -7/Data Miner | Free Imp. Fusion Compressor | -7/Data Miner | Free Imp. Point Defense System | -7/Data Miner | Free Robot Schematics ------------------ A-02 Transporter | -7/Factory | Hacked S-27 Virus | -7/Data Miner | Free G-50 Soldier | -7/Data Miner | Free B-48 Gladiator | -7/Data Miner | Free C-17 Slicer | -7/Data Miner | Free A-15 Conveyor | -7/Data Miner | Free L-41 Fighter | -7/Data Miner | Free E-15 Imp | -7/Data Miner | Free Fabricated ------------ Imp. Focal Shield | x2 | -7/Factory L-41 Fighter | x3 | -6/Factory | Preloaded Repaired ---------- Arm. Huge Wheel | 54% | -7/Factory Reflective Plating | 1% | -6/Factory Studied --------- Wheel | -8/Materials | Hacked Com. Wheel | -8/Materials | Hacked Hvy. Assault Rifle | -8/Materials | Hacked Alien Tech Used ----------------- None Achievements -------------- Bullet Installation Hot Stuff Hydra Into The Breach Let Me Out Of Here Look Less Dangerous Next Time Challenges ------------ None Game ------ Seed AssemblyMyomerInverter Manual? 0 Play Time 02:17:49 Cumulative 311.6 hours Start 2025.10.29 @ 23:43:49 End 2025.10.30 @ 06:28:11 Sessions 5 Manual Loads 0 Difficulty Rogue Special Mode None Game No. 239 Rogue 230 Adventurer 9 Explorer 0 Win Type - Total 3 Types 2/0/0/1/0/0/0/0/0/0 Lore% 86 Gallery% 74 Achievement% 45 Wizard Run 0 Options --------- Layout 1 ASCII 0 Keyboard 0 Movement Numpad Keybinds 0 Fullscreen 1 Font 24/Smallcaps Map View 50x35 Zoom Use 0% Tactical HUD 1 Map Filters NONE Filters NONE Steam 1 RUN: 894a9f1f-bfd5-4552-92b0-997e7b07ac73